Cogmind - Beta 15 @@@ ROGUE MODE // 2025.05.09 @ 00:23:01 Player: Huvy Result: Destroyed by P-70 Sage with Tesla Rifle Performance ------------- Evolutions (5) 2500 Regions Visited (5) 1000 Robots Destroyed (14) 70 Value Destroyed (767) 767 Prototype IDs (7) 140 Alien Tech Used (0) 0 Bonus (800) 800 TOTAL SCORE: 5277 Bonus ------- Registered with UFD 300 Met Optimus in HQ 500 Cogmind --------- Core Integrity 0/1000 Matter 277/300 Energy 54/100 System Corruption 18% Temperature Cool (0) Movement Core (100) Ox1 Location -5/Factory Parts ------- > --- POWER (3) -------- (None) > --- PROPULSION (4) --- (None) > --- UTILITY (6) ------ Improved Coolant Injector > --- WEAPON (4) ------- Field Laser > --- INVENTORY (5) ---- Hacking Suite Peak State ------------ > --- POWER ------------ Fission Core Micro Fission Core Micro Fission Core > --- PROPULSION ------- Overtuned Scrapsphere Overtuned Huge Scrapsphere > --- UTILITY ---------- Scrap Suit Advanced Heat Sink Large Storage Unit Improved Targeting Computer Improved Hardlight Generator > --- WEAPON ----------- Plasma Rifle Plasma Rifle Plasma Rifle Advanced Plasma Cannon > --- INVENTORY -------- Ion Engine Overtuned Treads Overtuned Medium Treads Aluminum Leg Aluminum Leg Improved Coolant Injector Precision Matter Filter Hacking Suite Plasma Rifle Wave Gun Great Axe [Rating: 78] Favorites ----------- Power Light Ion Engine Engine Light Ion Engine Power Core Micro Fission Core Reactor Light Antimatter Reactor Propulsion Aluminum Leg Treads Overtuned Medium Treads Leg Aluminum Leg Wheel Overtuned Huge Scrapsphere Utility Scrap Shield Device Scrap Suit Storage Large Storage Unit Processor Signal Interpreter Hackware Makeshift Hacking Suite Protection Scrap Shield Weapon Scythe Energy Gun Medium Laser Energy Cannon Advanced Plasma Cannon Ballistic Gun Assault Rifle Ballistic Cannon Gauss Cannon Special Weapon CPS Tube Impact Weapon Heavy Mace Slashing Weapon Scythe Build | -11 -10 -10 -10 -7 -5 ------- Run | Yrd Mat Min Sub Scr Fac Slots Evolved 10 | . . . . . 10 Power 2 | . . . . . 2 Propulsion 2 | . . . . . 2 Utility 4 | . . . . . 4 Weapon 2 | . . . . . 2 Parts Attached 47 | 6 1 4 3 6 27 Power 7 | 1 . 1 . . 5 Engine 3 | 1 . 1 . . 1 Core 3 | . . . . . 3 Reactor 1 | . . . . . 1 Propulsion 9 | 2 . 2 . 2 3 Treads 2 | . . . . 2 . Leg 3 | . . 2 . . 1 Wheel 4 | 2 . . . . 2 Hover . | . . . . . . Flight . | . . . . . . Utility 13 | 1 1 . 1 1 9 Device 6 | . . . . . 6 Storage 2 | 1 . . . 1 . Processor 3 | . 1 . . . 2 Hackware 1 | . . . . . 1 Protection 1 | . . . 1 . . Artifact . | . . . . . . Weapon 18 | 2 . 1 2 3 10 Energy Gun 11 | 1 . 1 2 . 7 Energy Cannon 1 | . . . . . 1 Ballistic Gun 1 | 1 . . . . . Ballistic Cannon 1 | . . . . 1 . Launcher . | . . . . . . Special Weapon 1 | . . . . 1 . Impact Weapon 1 | . . . . . 1 Slashing Weapon 2 | . . . . 1 1 Piercing Weapon . | . . . . . . Special Melee Weapon . | . . . . . . Unidentified Prototypes 1 | . . . . . 1 Parts Lost 30 | . . . . . 30 Power 5 | . . . . . 5 Propulsion 7 | . . . . . 7 Utility 7 | . . . . . 7 Weapon 11 | . . . . . 11 Highest Loss Streak 29 | . . . . . 29 To Critical Strikes 1 | . . . . . 1 Average Backups 6 | 4 4 6 4 5 10 Power . | 1 1 1 1 1 . Propulsion 1 | 1 2 3 2 . 3 Utility 2 | . . 1 1 2 2 Weapon 1 | 1 1 1 . 1 3 Tool/Special . | . . . . . . Unused Backups 3 | . . . 1 1 1 Power . | . . . . . . Propulsion 2 | . . . 1 1 . Utility 1 | . . . . . 1 Weapon . | . . . . . . Tool/Special . | . . . . . . Average Slot Usage (%) 84 | . 97 99 87 84 74 Engine 11 | . 14 13 14 14 2 Core 2 | . . . . . 12 Leg 20 | . . 17 28 26 . Wheel 3 | . 28 10 . . 9 Device 1 | . . . . . 10 Storage 4 | . 14 14 2 3 4 Processor 1 | . 11 14 3 . 4 Protection 7 | . . . 10 9 . Energy Gun 3 | . 14 14 25 1 1 Ballistic Gun 1 | . 14 14 2 . . Ballistic Cannon 1 | . . . . . 4 Special Weapon 9 | . . . . 12 3 Slashing Weapon 10 | . . . . 13 4 Peak Build Rating 78 | 6 7 7 10 21 78 Average Rating 22 | 4 6 6 8 13 63 On Entrance 7 | . 6 7 7 10 15 Naked Turns . | . . . . . . Heaviest Build 75 | 14 14 14 26 30 75 Greatest Support 43 | 32 32 32 20 43 28 Greatest Overweight (x) 7 | . . . 1 7 5 Average Overweight (x) 1 | . . . . 1 1 Largest Inventory Capacity 15 | 8 8 8 8 15 15 Average Capacity 8 | 7 8 8 5 7 14 Most Carried 14 | 5 6 7 7 14 14 Average Carried 7 | 4 4 6 5 6 10 Final Capacity 15 | 8 8 8 5 15 5 Final Carried 14 | 4 5 7 5 14 1 Class Distribution -------------------- 83% | Mutant 12% | Derelict-Scrapper 3% | Scrapper Dominant Class ---------------- Mutant | -10/Materials Mutant | -10/Mines Mutant | -10/Subcaves Mutant | -7/Scraptown Derelict-Scrapper | -5/Factory Resources | -11 -10 -10 -10 -7 -5 ----------- Run | Yrd Mat Min Sub Scr Fac Matter Collected 762 | 214 29 109 36 90 284 Remotely . | . . . . . . Salvage Created 747 | . 29 169 . . 549 Parts 29 | . . 7 . . 22 Haulers Intercepted . | . . . . . . Recyclers Shooed . | . . . . . . Parts Field Recycled . | . . . . . . Retrieved Matter . | . . . . . . Parts Self-Destructed 4 | . . . 4 . . Prevented . | . . . . . . Kills | -11 -10 -10 -10 -7 -5 ------- Run | Yrd Mat Min Sub Scr Fac Combat Hostiles Destroyed 11 | . . 3 . . 8 Melee 3 | . . . . . 3 Guns 4 | . . 3 . . 1 Classes Destroyed 8 | . 1 2 . . 5 Worker 1 | . . 1 . . . Operator 1 | . . . . . 1 Watcher 1 | . 1 . . . . Grunt 6 | . . 3 . . 3 Brawler 2 | . . . . . 2 Duelist 1 | . . . . . 1 Sentry 1 | . . . . . 1 Programmer 1 | . . . . . 1 Best Kill Streak 3 | . 1 2 . . 3 Combat Bots Only 3 | . . 2 . . 3 Max Kills in Single Turn 1 | . 1 1 . . 1 Gunslinging . | . . . . . . Exploded . | . . . . . . Melee 1 | . . . . . 1 Uniques/NPCs Destroyed . | . . . . . . Combat | -11 -10 -10 -10 -7 -5 -------- Run | Yrd Mat Min Sub Scr Fac Hostile Shots Fired 271 | . . 20 4 3 244 Missed 57 | . . 5 1 . 51 Hits 214 | . . 15 3 3 193 Melee 15 | . . . . . 15 Projectile 199 | . . 15 3 3 178 AOE 1 | . . . 1 . . Critical Strikes 22 | . . . . . 22 Damage Taken 4092 | . . 206 72 38 3776 Core 1058 | . . 39 . 18 1001 Absorbed by Shields 276 | . . . . . 276 Core Remaining (%) 88 | 100 . . . 77 . Volleys Fired 39 | . 1 15 3 . 20 Largest 4 | . 2 2 2 . 4 Hottest 323 | . 70 70 90 . 323 Shots Fired 83 | . 2 30 6 . 45 Gun 68 | . 2 30 6 . 30 Cannon 15 | . . . . . 15 Launcher . | . . . . . . Special . | . . . . . . Kinetic 22 | . 1 15 . . 6 Thermal 61 | . 1 15 6 . 39 Explosive . | . . . . . . Electromagnetic . | . . . . . . Robot Hit Streak 8 | . 2 8 4 . 8 Robot Miss Streak 2 | . . 1 2 . 2 Penetration Max 1 | . . . . . 1 Secondary Targets 2 | . . 1 . . 1 Max Gunslinging Chain 1 | . . 1 . . 1 Shots Hit Robots 68 | . 2 21 4 1 40 Core Hits 24 | . 1 9 . . 14 Critical Kills 3 | . . 1 . . 2 Critical Parts Destroyed 1 | . . 1 . . . Critical Strikes 10 | . . 4 . . 6 Burn 4 | . . 2 . . 2 Meltdown 2 | . . . . . 2 Destroy 2 | . . 2 . . . Sever 2 | . . . . . 2 Melee Attacks 37 | . . . . 2 35 Impact 6 | . . . . . 6 Slashing 31 | . . . . 2 29 Piercing . | . . . . . . Sneak Attacks 1 | . . . . . 1 Combat Hostiles . | . . . . . . Follow-up Attacks . | . . . . . . Damage Inflicted 1580 | . 25 266 24 32 1233 Guns 757 | . 25 266 24 . 442 Cannons 336 | . . . . . 336 Explosions . | . . . . . . Melee 487 | . . . . 32 455 Ramming . | . . . . . . Kinetic 260 | . 12 138 . . 110 Thermal 833 | . 13 128 24 . 668 Explosive . | . . . . . . Electromagnetic . | . . . . . . Impact 238 | . . . . . 238 Slashing 249 | . . . . 32 217 Piercing . | . . . . . . Highest Corruption 17 | . . . . . 17 Average Corruption 6 | . . . . . 6 Corruption Purged . | . . . . . . Corruption Blocked . | . . . . . . Effects 7 | . . . . . 7 Message Errors 3 | . . . . . 3 Matter Fused 3 | . . . . . 3 Energy Discharges 1 | . . . . . 1 Overload Shots . | . . . . . . Overflow Damage . | . . . . . . Projectiles . | . . . . . . Explosions . | . . . . . . Melee . | . . . . . . Knockbacks 1 | . . . . . 1 Impact . | . . . . . . Kinetic 1 | . . . . . 1 Secondary . | . . . . . . Self-Inflicted Damage . | . . . . . . Shots . | . . . . . . Rammed . | . . . . . . Targets Rammed . | . . . . . . Kicked . | . . . . . . Crushed . | . . . . . . Highest Temperature 607 | . 9 177 . . 607 Average Temperature 189 | . 6 66 . . 261 Received Heat Transfer 801 | . . 120 . 12 669 Effects 21 | . . . . . 21 Shutdowns 6 | . . . . . 6 Energy Bleed 1 | . . . . . 1 Interference 3 | . . . . . 3 Matter Decay 1 | . . . . . 1 Short Circuit 1 | . . . . . 1 Damage (minor) 2 | . . . . . 2 Damage (major) 7 | . . . . . 7 Siege Activations . | . . . . . . Martial Activations . | . . . . . . Shielding Activations . | . . . . . . Robots Disrupted . | . . . . . . Combat Hostiles . | . . . . . . Robots Corrupted 1 | . . . . . 1 Combat Hostiles 1 | . . . . . 1 Parts Fried . | . . . . . . Impact Corruptions 1 | . . . . . 1 Robots Melted 3 | . . . . . 3 Combat Hostiles 3 | . . . . . 3 Parts Melted 4 | . . 1 . . 3 Heat Transferred 2154 | . 37 518 62 . 1537 Parts Sabotaged 1 | . . . . . 1 Parts Stolen . | . . . . . . Parts Stripped . | . . . . . . Power Chain Reactions . | . . . . . . Alert | -11 -10 -10 -10 -7 -5 ------- Run | Yrd Mat Min Sub Scr Fac Maximum Alert Level 1 | . . . . . 1 Low Security (%) 99 | 100 100 100 . . 99 Level 1 . | . . . . . . Level 2 . | . . . . . . Level 3 . | . . . . . . Level 4 . | . . . . . . Level 5 . | . . . . . . High Security . | . . . . . . Max Security . | . . . . . . Peak Influence 205 | . 7 50 . . 205 Initial . | . . . . . . Average 22 | . . 12 . . 29 Influence Increases 524 | . 7 90 . . 427 Destroy 0b10 Robot/C 220 | . . 60 . . 160 Destroy 0b10 Robot/NC 15 | . 5 5 . . 5 Destroy Leader 42 | . 2 10 . . 30 Successful Hack 12 | . . . . . 12 Disable Machine 45 | . . 15 . . 30 Anti-Garrison Action 150 | . . . . . 150 Destroy Structure 40 | . . . . . 40 Influence Decreases 504 | . 7 90 . . 407 Time Decay 221 | . 7 90 . . 124 Lost Part 283 | . . . . . 283 Squads Dispatched 3 | . . . . . 3 Investigation . | . . . . . . Extermination 1 | . . . . . 1 Reinforcement . | . . . . . . Assault 2 | . . . . . 2 Garrison . | . . . . . . Intercept . | . . . . . . Searches Triggered . | . . . . . . Construction Impeded . | . . . . . . Haulers Reinforced . | . . . . . . Active Scanning Responses . | . . . . . . Cargo Convoy Interrupts . | . . . . . . Stealth | -11 -10 -10 -10 -7 -5 --------- Run | Yrd Mat Min Sub Scr Fac Distress Signals . | . . . . . . Communications Jammed . | . . . . . . Distress Signals . | . . . . . . Times Spotted 37 | . 1 4 12 5 15 Peak Tracking Total 8 | . 1 2 8 4 7 Tactical Retreats . | . . . . . . Traps | -11 -10 -10 -10 -7 -5 ------- Run | Yrd Mat Min Sub Scr Fac Traps Triggered 1 | . . . . . 1 Indirectly . | . . . . . . Trap Hack Attempts . | . . . . . . Triggered . | . . . . . . Disarmed . | . . . . . . Reprogrammed . | . . . . . . Reused . | . . . . . . Traps Extracted . | . . . . . . Installed . | . . . . . . Triggered . | . . . . . . Machines | -11 -10 -10 -10 -7 -5 ---------- Run | Yrd Mat Min Sub Scr Fac Machines Disabled 4 | . . 1 . . 3 Max in Single Turn 1 | . . 1 . . 1 Garrison Access 1 | . . . . . 1 Machines Repaired . | . . . . . . Machines Dismantled . | . . . . . . Machines Sabotaged . | . . . . . . Overloaded Fab Kills . | . . . . . . Hacking | -11 -10 -10 -10 -7 -5 --------- Run | Yrd Mat Min Sub Scr Fac Machines Accessed 11 | . 1 . . 5 5 Terminals 3 | . . . . . 3 Fabricators . | . . . . . . Repair Stations . | . . . . . . Recycling Units 2 | . 1 . . . 1 Scanalyzers . | . . . . . . Garrison Access 1 | . . . . . 1 Total Hacks 33 | . 1 . . 23 9 Successful 26 | . . . . 23 3 Failed 7 | . 1 . . . 6 Catastrophic 1 | . . . . . 1 Database Lockouts . | . . . . . . Manual 1 | . . . . 1 . Terminals 5 | . . . . . 5 Fabricators . | . . . . . . Repair Stations . | . . . . . . Recycling Units 2 | . 1 . . . 1 Scanalyzers . | . . . . . . Garrison Access 3 | . . . . . 3 Terminal Hacks 25 | . . . . 23 2 Record 22 | . . . . 22 . Zone Layout 2 | . . . . . 2 Proto ID Catalog 1 | . . . . 1 . Fabricator Hacks . | . . . . . . Repair Station Hacks . | . . . . . . Recycling Unit Hacks 1 | . . . . . 1 Report Inventory 1 | . . . . . 1 Scanalyzer . | . . . . . . Garrison Access Hacks . | . . . . . . Unauthorized Hacks . | . . . . . . Terminals . | . . . . . . Fabricators . | . . . . . . Repair Stations . | . . . . . . Recycling Units . | . . . . . . Scanalyzers . | . . . . . . Garrison Access . | . . . . . . Data Cores Recovered . | . . . . . . Used . | . . . . . . Hacking Detections 4 | . . . . . 4 Full Trace Events . | . . . . . . Feedback Events . | . . . . . . Feedback Blocked . | . . . . . . Robot Schematics Acquired . | . . . . . . Robots Built . | . . . . . . Authchips . | . . . . . . Time . | . . . . . . Total Robot Build Rating . | . . . . . . Part Schematics Acquired . | . . . . . . Parts Built . | . . . . . . Authchips . | . . . . . . Time . | . . . . . . Total Part Build Rating . | . . . . . . Parts Repaired . | . . . . . . Time . | . . . . . . Parts Recycled . | . . . . . . Recycled Matter . | . . . . . . Retrieved Matter . | . . . . . . Retrieved Components . | . . . . . . Parts Scanalyzed . | . . . . . . Part Schematics Acquired . | . . . . . . Parts Damaged . | . . . . . . Bothacking | -11 -10 -10 -10 -7 -5 ------------ Run | Yrd Mat Min Sub Scr Fac Used RIF Installer . | . . . . . . Robots Hacked . | . . . . . . Non-combat . | . . . . . . Combat . | . . . . . . Robot Hacks Applied . | . . . . . . Relay Couplers Released 5 | . . . . . 5 Machine Destruction 2 | . . . . . 2 Programmers 3 | . . . . . 3 Fabnet Peak Effective % . | . . . . . . Robots Rewired . | . . . . . . Allies Hacked . | . . . . . . Hacks Repelled . | . . . . . . Allies | -11 -10 -10 -10 -7 -5 -------- Run | Yrd Mat Min Sub Scr Fac Total Allies . | . . . . . . Largest Group . | . . . . . . Highest-Rated Group . | . . . . . . Highest-Rated Ally . | . . . . . . Total Orders . | . . . . . . Ally Attacks . | . . . . . . Total Damage . | . . . . . . Kills . | . . . . . . Allies Corrupted . | . . . . . . Allies Melted 2 | . . . 1 1 . Intel | -11 -10 -10 -10 -7 -5 ------- Run | Yrd Mat Min Sub Scr Fac Active Infowar (turns) 845 | . . . . . 845 Sensors 845 | . . . . . 845 Robot Analysis Total . | . . . . . . Derelict Logs Recovered 2 | . . 1 . 1 . Drone Launches . | . . . . . . Drone Recoveries . | . . . . . . Exploration | -11 -10 -10 -10 -7 -5 ------------- Run | Yrd Mat Min Sub Scr Fac Turns Passed 5792 | 69 140 297 146 4109 1031 Spaces Moved 3146 | 43 118 198 62 2092 633 Core 25 | 10 . . . 5 10 Treads 69 | . . . . 69 . Legs 2214 | . . 132 62 2018 2 Wheels 838 | 33 118 66 . . 621 Hover . | . . . . . . Flight . | . . . . . . Fastest Speed 50 | 50 100 100 120 120 50 Average Speed 159 | 88 100 113 180 189 87 Slowest Speed 400 | 100 100 120 190 400 300 Overloaded Moves . | . . . . . . Propulsion Burnouts . | . . . . . . Robots Hopped . | . . . . . . Potential Cave-ins 3 | . . . . . 3 Cave-ins Triggered . | . . . . . . Exploration Rate (%) 29 | 3 24 45 6 91 9 Regions Visited 5 Branch Regions 3 Pre-discovered Areas . | . . . . . . Known Exits Taken . | . . . . . . Unknown Exits Taken 5 | 1 1 1 1 1 . Scrap Searched 5 | . . 1 . 4 . Spaces Dug 20 | . . . . . 20 Terrain Destroyed 21 | . . . . . 21 Melee 20 | . . . . . 20 Projectile 1 | . . . . . 1 AOE . | . . . . . . Terrain Rammed . | . . . . . . Walls Destroyed . | . . . . . . Machines Disabled . | . . . . . . Actions | -11 -10 -10 -10 -7 -5 --------- Run | Yrd Mat Min Sub Scr Fac Total 3801 | 73 138 240 93 2234 1023 Wait 449 | 16 17 18 16 111 271 Move 3141 | 42 117 197 61 2091 633 Hop . | . . . . . . Pick Up 47 | 9 2 4 2 10 20 Fast Attach 10 | 1 . . 1 8 . Attach 44 | 5 1 1 1 . 36 Detach 6 | . . . . . 6 Swap 5 | . . 3 1 1 . Drop 21 | . . 2 7 10 2 Fire 39 | . 1 15 3 . 20 Melee 37 | . . . . 2 35 Ram . | . . . . . . Kick . | . . . . . . Crush . | . . . . . . Escape Stasis . | . . . . . . Rewire . | . . . . . . Trap . | . . . . . . Miscellaneous 2 | . . . 1 1 . Route ------- -11/Scrapyard -10/Materials -10/Mines (discovered 2 exits: [*Mat] / [*Sub]) -10/Subcaves -7/Scraptown (discovered 2 exits: *Fac x2) -5/Factory History --------- Turn | Location | Event 11 | -11/Scrapyard | Discovered new exit (range 15) 70 | -11/Scrapyard | Entered Materials 181 | -10/Materials | Discovered new exit (range 7) 210 | -10/Materials | Entered Mines 310 | -10/Mines | Build established: Mutant 362 | -10/Mines | Learned 4 Materials zone layouts 368 | -10/Mines | Discovered new exit (range 5) 443 | -10/Mines | Discovered new exit (range 6) 507 | -10/Mines | Entered Subcaves 508 | -10/Subcaves | Approached by a straggling Scientist 604 | -10/Subcaves | Scientist uncovered a shortcut to Scraptown 642 | -10/Subcaves | Ambushed by swarm of Subdwellers 653 | -10/Subcaves | Entered Scraptown 682 | -7/Scraptown | Lost 4 allies 1242 | -7/Scraptown | Visited TADAMA 1282 | -7/Scraptown | Visited Awakened 1339 | -7/Scraptown | Visited Shadow of the Wyrm 1394 | -7/Scraptown | Visited Cave Peace 1465 | -7/Scraptown | Visited Fellowship of the Rings 1623 | -7/Scraptown | Scanned Subdweller tech in exchange for log data 1632 | -7/Scraptown | Learned Research stockpile data 1655 | -7/Scraptown | Discovered new exit (range 13) 2176 | -7/Scraptown | Visited Assassins FH 2235 | -7/Scraptown | Visited Cyclists 2265 | -7/Scraptown | Visited UFD Registry 2265 | -7/Scraptown | Registered with UFD as "Nanoroller" 2431 | -7/Scraptown | Visited Modified Component R&D 2755 | -7/Scraptown | Visited Junk Repository 2983 | -7/Scraptown | Discovered new exit (range 5) 3046 | -7/Scraptown | Visited Abandonware Association 3063 | -7/Scraptown | Visited Scrap Suit Storage 3177 | -7/Scraptown | Visited Scrapoid Pod Storage 3211 | -7/Scraptown | Visited LU-1G1's Boring Crew 3357 | -7/Scraptown | Visited Science Guys 3573 | -7/Scraptown | Delivered Scrap Shield to a Scientist 3789 | -7/Scraptown | Found Scrap Suit 4522 | -7/Scraptown | Met Optimus 4522 | -7/Scraptown | Accepted into 0bPrime 4659 | -7/Scraptown | Civil war broke out across Scraptown 4708 | -7/Scraptown | Lost 3 allies 4762 | -7/Scraptown | Entered Factory 4762 | -5/Factory | Evolved 10 slots: Power x2, Propulsion x2, Utility x4, Weapon x2 5114 | -5/Factory | Build established: Derelict-Scrapper 5721 | -5/Factory | System corruption reached 10% 5752 | -5/Factory | Core integrity fell below 50% 5776 | -5/Factory | Core integrity fell below 20% 5793 | -5/Factory | Destroyed by P-70 Sage with Tesla Rifle Last Messages --------------- effect. 05760_ G-50 Soldier system terminally corrupted. 05760_ M-28 Smith repairs R-10 Processor Com. Wheel. 05762_ Acquired 25 matter. 05763_ G-67 Veteran destroyed. 05764_ Flexi-carbon Leg destroyed. 05764_ R-10 Processor collects Flexi-carbon Leg. 05767_ Sneak attack on R-10 Processor. 05769_ M-28 Smith repairs T-07 Excavator Mining Laser. 05771_ Acquired Lgt. Antimatter Reactor. 05773_ P-70 Sage resets P-70 Sage, system corruption cleaned. 05778_ Lgt. Antimatter Reactor destroyed. 05779_ Hvy. Mace destroyed. 05781_ System corrupted: Matter fused (-8). 05783_ Acquired Plasma Rifle. 05784_ Acquired Field Laser. 05788_ Plasma Rifle destroyed. Map ----- +----------------------------------------------------+ | ?????????????????????????????????????????? | | ?????????????????????????????????#####+########## | | ?????????????????????#???????????# #?# | | ????????????????????? ??????????# """ #?# | | ????????????????????? ??????????# """ #?# | | ????????????????????? ?????????# """ #?# | | ?????????????????????? ?????????#"" #?# | | ??????????????????????? ????????#"" """ #?# | | ???????????????????#####+#########"" """ #?# | | ???????????????????# ##T """ #?# | | ???????????????????# """"" ##"" #?# | | ???????????????????# "" "" ##"" #?# | | ???????????????????# ##"" #?# | | ???????????????????# ## #?# | | ???????????????????# """ """ #########+#####?# | | ???????????????????# """ """ # ######## | | ???????????????????# """ """ + ## | | ???????????????????# # ]]! ## "" | | ?????? ????????????# # ]! ## ! "" | | ????? ???????????# #! ]! ## """ | | ????? ??????????# ! # ## """ | | ???? ?????????############## #" """ | | ???? ???????????####??????# ## | | ???? ###########! ###########+############# | | ??? %b % p ^ | | ??? % % @p ^ | | ?? % | | ?? ^ | | ?? t | | ????????###############+#####;#############"###### | | ?????????????????##*## #???## | | ?????????????????# ### %= = """ ""! #????# """ | | ?????????????????## # =!= """ " #???#" """ | | ?????????????????# ### !! """ ""! #???## """ | | ?????????????????##### ! #????# | | ?????????????????????# """ """ """ #????# """ | | ?????????????????????# """ """ """ #????# """ | | ?????????????????????# """ """ """ #????# """ | | ?????????????????????# #????# | | ?????????????????????##################????####### | | | | | | | | | | | | | | | | | | | | | +----------------------------------------------------+ Best States ------------- Heat Dissipation 59 Coolant Potential 80 Energy Generation 38 Energy Capacity 410 Matter Stores 300 Matter Capacity 300 Sight Range 16 Robot Scan Range 16 Terrain Scan Density 10 Armor Coverage 800 Evasion (%) 55 Targeting Accuracy 6 Recoil Reduction 2 Offensive Hacking 11 Item Schematics ----------------- None Robot Schematics ------------------ None Fabricated ------------ Nothing Repaired ---------- Nothing Alien Tech Used ----------------- None Achievements -------------- None Challenges ------------ None Game ------ Seed CompositeReflectiveDrillbomb Manual? 0 Play Time 01:13:26 Cumulative 23.0 hours Start 2025.05.08 @ 23:12:18 End 2025.05.09 @ 00:23:01 Sessions 1 Manual Loads 0 Difficulty Rogue Special Mode None Game No. 32 Rogue 32 Adventurer 0 Explorer 0 Win Type - Total 0 Types 0/0/0/0/0/0/0/0/0/0 Lore% 14 Gallery% 25 Achievement% 20 Wizard Run 0 Options --------- Layout 1 ASCII 0 Keyboard 0 Movement Mouse Keybinds 0 Fullscreen 1 Font 32/SmallcapsGlow Map View 50x35 Zoom Use 0% Tactical HUD 1 Map Filters NONE Filters NONE Steam 1 RUN: 45c0df81-a0cc-4fb7-bd76-6f549665c99e